bitfinex-derivatives/quotes_BTCF0:USTF0_20241221
["timestamp","ask_amount","ask_price","bid_price","bid_amount"]
[1734764842951,0.12366563,98506.0,98496.0,0.1804]
[1734764844754,0.12366119,98506.0,98496.0,0.1804]
[1734764847546,0.12364717,98506.0,98496.0,0.1804]
[1734764848860,0.07429391,98506.0,98496.0,0.1804]
[1734764849355,0.18242885,98513.0,98505.0,0.36232275]
[1734764849563,0.06495279,98520.0,98518.0,0.050779]
[1734764849758,0.05078,98518.0,98517.0,0.3608]
[1734764850267,0.05082,98518.0,98517.0,0.3608]
[1734764851066,4e-05,98518.0,98517.0,0.3608]
[1734764851265,0.00104,98518.0,98517.0,0.3608]
[1734764852062,0.15184875,98527.0,98525.0,0.050776]
[1734764852262,0.15184875,98527.0,98526.0,0.3608]
[1734764852758,0.15184875,98527.0,98526.0,0.5371]
[1734764853070,0.050772,98533.0,98526.0,0.5371]
[1734764853263,0.050772,98533.0,98527.0,0.050775]
[1734764853770,0.050772,98533.0,98526.0,0.54538]
[1734764853965,0.001,98527.0,98526.0,0.603875]
[1734764854173,0.00104,98527.0,98526.0,0.603875]
[1734764854360,0.00104,98527.0,98526.0,0.594875]
[1734764854361,4e-05,98527.0,98526.0,0.594875]
[1734764854964,0.00104,98527.0,98526.0,0.603875]
[1734764855270,0.00104,98527.0,98526.0,0.601875]
[1734764855964,0.00204,98527.0,98526.0,0.602875]
[1734764856470,0.00204,98527.0,98526.0,0.4611]
[1734764856768,0.00204,98527.0,98526.0,0.3738]
[1734764856972,0.00204,98527.0,98526.0,0.013]
[1734764858571,0.09804,98527.0,98526.0,0.013]
[1734764859560,0.00204,98527.0,98526.0,0.013]
[1734764861268,0.01043176,98527.0,98526.0,0.3738]
[1734764862164,0.09109733,98530.0,98526.0,0.3738]
[1734764862369,0.15184875,98540.0,98539.0,0.050769]
[1734764863472,0.15184875,98540.0,98539.0,0.056769]
[1734764863661,0.001,98540.0,98539.0,0.056769]
[1734764864169,0.001,98540.0,98539.0,0.144569]
[1734764865065,0.002,98540.0,98539.0,0.149569]
[1734764867673,0.002,98540.0,98539.0,0.061769]
[1734764874675,0.052768,98540.0,98539.0,0.011]
[1734764875063,0.240568,98540.0,98539.0,0.011]
[1734764875868,0.24886095,98540.0,98539.0,0.011]
[1734764878385,0.10509295,98540.0,98539.0,0.011]
[1734764879073,0.01029295,98540.0,98539.0,0.011]
[1734764887087,0.01031481,98540.0,98539.0,0.011]
[1734764890878,0.01031481,98540.0,98539.0,0.061769]
[1734764894477,0.01031481,98540.0,98539.0,0.422569]
[1734764905002,0.01036189,98540.0,98539.0,0.422569]
[1734764910614,0.0103635,98540.0,98539.0,0.422569]
[1734764910808,0.18181958,98556.0,98555.0,0.05076]
[1734764911315,0.04087013,98560.0,98555.0,0.3608]
[1734764911608,0.04087013,98560.0,98559.0,0.050758]
[1734764912007,0.04087013,98560.0,98555.0,0.3608]
[1734764912008,0.01171955,98568.0,98564.0,0.050756]
[1734764912206,0.1823,98570.0,98567.0,0.3608]
[1734764912410,0.0118069,98569.0,98567.0,0.3608]
[1734764912605,0.0118069,98568.0,98567.0,0.411554]
[1734764913005,0.1823,98570.0,98569.0,0.050753]
[1734764914203,0.1873,98570.0,98569.0,0.050753]
[1734764914814,0.1843,98570.0,98569.0,0.050753]
[1734764915221,0.1843,98570.0,98569.0,0.051753]
[1734764915915,0.30582085,98570.0,98569.0,0.051753]
[1734764916417,0.30582085,98570.0,98569.0,0.027953]
[1734764916723,0.12352085,98570.0,98569.0,0.027953]
[1734764917109,0.12152085,98570.0,98569.0,0.027953]
[1734764917318,0.12252085,98570.0,98569.0,0.397753]
[1734764917711,0.12252085,98570.0,98569.0,0.409343]
[1734764918022,0.002,98570.0,98569.0,0.409343]
[1734764918215,0.002,98570.0,98569.0,0.400343]
[1734764918216,0.001,98570.0,98569.0,0.400343]
[1734764918612,0.001,98570.0,98569.0,0.425143]
[1734764918812,0.002,98570.0,98569.0,0.434143]
[1734764919619,0.0895,98582.0,98569.0,0.434143]
[1734764919620,0.0895,98582.0,98581.0,0.050747]
[1734764919808,0.0895,98582.0,98581.0,0.411547]
[1734764921217,0.0905,98582.0,98581.0,0.420547]
[1734764921616,0.0915,98582.0,98581.0,0.427547]
[1734764934028,0.0905,98582.0,98581.0,0.418547]
[1734764934235,0.0915,98582.0,98581.0,0.427547]
[1734764934547,0.0915,98582.0,98581.0,0.429547]
[1734764936434,0.0908,98589.0,98588.0,0.050743]
[1734764937429,0.0908,98589.0,98588.0,0.057743]
[1734764937630,0.0918,98589.0,98588.0,0.057743]
[1734764937830,0.0928,98589.0,98588.0,0.066743]
[1734764938235,0.10105004,98589.0,98588.0,0.066743]
[1734764938935,0.0928,98589.0,98588.0,0.066743]
[1734764939130,0.10104643,98589.0,98588.0,0.066743]
[1734764941031,0.0928,98589.0,98588.0,0.066743]
[1734764941237,0.10104643,98589.0,98588.0,0.066743]
[1734764942329,0.10104643,98589.0,98584.0,0.3608]
[1734764942525,0.10104643,98589.0,98569.0,0.31004252]
[1734764942526,0.050752,98572.0,98569.0,0.31004252]
[1734764942737,0.050752,98572.0,98571.0,0.30445252]
[1734764943236,0.05899843,98572.0,98571.0,0.30445252]
[1734764943625,0.050752,98572.0,98571.0,0.30445252]
[1734764944237,0.05900736,98572.0,98571.0,0.30445252]
[1734764944532,0.06800736,98572.0,98571.0,0.001]
[1734764944736,0.01725536,98572.0,98571.0,0.001]
[1734764945345,0.02325536,98572.0,98571.0,0.002]
[1734764945731,0.29245536,98572.0,98571.0,0.002]
[1734764946633,0.29245659,98572.0,98571.0,0.002]
[1734764949940,0.29246229,98572.0,98571.0,0.002]
[1734764952142,0.2842,98572.0,98571.0,0.002]
[1734764954339,0.29246229,98572.0,98571.0,0.002]
[1734764956047,0.20016229,98572.0,98571.0,0.002]
[1734764958147,0.1919,98572.0,98571.0,0.002]
[1734764959144,0.20016301,98572.0,98571.0,0.002]
[1734764959542,0.25091501,98572.0,98571.0,0.002]
[1734764960645,0.242652,98572.0,98571.0,0.002]
[1734764961047,0.25091501,98572.0,98571.0,0.002]
[1734764961238,0.242652,98572.0,98571.0,0.002]
[1734764961439,0.25091373,98572.0,98571.0,0.002]
[1734764962253,0.61171373,98572.0,98571.0,0.002]
[1734764964157,0.66105833,98572.0,98571.0,0.002]
[1734764967560,0.66107401,98572.0,98571.0,0.002]
[1734764967758,0.66107597,98572.0,98571.0,0.002]
[1734764971762,0.57637597,98572.0,98571.0,0.002]
[1734764972452,0.48417597,98572.0,98571.0,0.002]
[1734764976269,0.48420401,98572.0,98571.0,0.002]
[1734764979063,0.48420251,98572.0,98571.0,0.002]
[1734764982173,0.48420268,98572.0,98571.0,0.002]
[1734764983475,0.48420387,98572.0,98571.0,0.002]
[1734764984575,0.48420658,98572.0,98571.0,0.002]
[1734764984775,0.48420658,98572.0,98571.0,0.00727]
[1734764985577,0.48421225,98572.0,98571.0,0.00727]
[1734764986776,0.66585147,98572.0,98571.0,0.00727]
[1734764987976,0.48421225,98572.0,98571.0,0.00727]
[1734764988163,0.48421387,98572.0,98571.0,0.00727]
[1734764989077,0.050759,98558.0,98557.0,0.18141408]
[1734764989268,0.050762,98552.0,98551.0,0.0877]
[1734764989468,0.05907927,98552.0,98551.0,0.0877]
[1734764990376,0.06507927,98552.0,98551.0,0.0887]
[1734764990976,0.07407927,98552.0,98551.0,0.0887]
[1734764992171,0.12342726,98552.0,98551.0,0.0887]
[1734764995073,0.22612363,98552.0,98551.0,0.0887]
[1734764996082,0.07407927,98552.0,98551.0,0.0887]
[1734764997983,0.065762,98552.0,98551.0,0.0887]
[1734764998972,0.07406845,98552.0,98551.0,0.0887]
[1734764999580,0.065762,98552.0,98551.0,0.0887]
[1734764999977,0.07406808,98552.0,98551.0,0.0887]
[1734765000382,0.07406808,98552.0,98551.0,0.001]
[1734765000584,0.065762,98552.0,98551.0,0.001]
[1734765001186,0.0740589,98552.0,98551.0,0.001]
[1734765007194,0.07405585,98552.0,98551.0,0.001]
[1734765007891,0.22610021,98552.0,98551.0,0.001]
[1734765009193,0.22610021,98552.0,98551.0,0.005]
[1734765009797,0.58690021,98552.0,98551.0,0.005]
[1734765010297,0.58691454,98552.0,98551.0,0.005]
[1734765012485,0.58691153,98552.0,98551.0,0.005]
[1734765015406,0.43486717,98552.0,98551.0,0.005]
[1734765015990,0.43487713,98552.0,98551.0,0.005]
[1734765016805,0.48422565,98552.0,98551.0,0.005]
[1734765020813,0.48423517,98552.0,98551.0,0.005]
[1734765021509,0.43347317,98552.0,98551.0,0.005]
[1734765021699,0.43347317,98552.0,98551.0,0.055763]
[1734765022101,0.48423517,98552.0,98551.0,0.005]
[1734765024103,0.12343517,98552.0,98551.0,0.005]
[1734765024907,0.1234359,98552.0,98551.0,0.005]
[1734765026212,0.22627584,98552.0,98551.0,0.18676004]
[1734765027914,0.07408738,98552.0,98551.0,0.18676004]
[1734765029217,0.22627584,98552.0,98551.0,0.005]
[1734765030410,0.07408738,98552.0,98551.0,0.18676004]
[1734765031319,0.07408142,98552.0,98551.0,0.18676004]
[1734765031822,0.02331942,98552.0,98551.0,0.18676004]
[1734765032020,0.02331942,98552.0,98551.0,0.23752304]
[1734765033220,0.02332051,98552.0,98551.0,0.23752304]
[1734765033825,0.02331979,98552.0,98551.0,0.23752304]
[1734765035420,0.07408179,98552.0,98551.0,0.23752304]
[1734765035820,0.07407661,98552.0,98551.0,0.23752304]
[1734765036023,0.07407661,98552.0,98551.0,0.055763]
[1734765036826,0.0740729,98552.0,98551.0,0.055763]
[1734765038319,0.0233109,98552.0,98551.0,0.055763]
[1734765039217,0.0233109,98552.0,98551.0,0.23755978]
[1734765041320,0.0233109,98552.0,98551.0,0.055763]
[1734765041921,0.02332404,98552.0,98551.0,0.055763]
[1734765043829,0.02332404,98552.0,98551.0,0.2375938]
[1734765046631,0.07408604,98552.0,98551.0,0.005]
[1734765048427,0.2262745,98552.0,98551.0,0.1868308]
[1734765048836,0.22626399,98552.0,98551.0,0.1868308]
[1734765049231,0.226264,98552.0,98551.0,0.1868308]
[1734765049633,0.07407554,98552.0,98551.0,0.1868308]
[1734765051732,0.07407662,98552.0,98551.0,0.1868308]
[1734765052841,0.07407662,98552.0,98551.0,0.005]
[1734765054944,0.07407646,98552.0,98551.0,0.005]
[1734765056745,0.07407321,98552.0,98551.0,0.005]
[1734765057344,0.22633014,98552.0,98551.0,0.055763]
[1734765057850,0.21801893,98552.0,98551.0,0.055763]
[1734765058049,0.22632956,98552.0,98551.0,0.055763]
[1734765058252,0.2263294,98552.0,98551.0,0.055763]
[1734765059652,0.12341756,98552.0,98551.0,0.055763]
[1734765060038,0.12341691,98552.0,98551.0,0.055763]
[1734765060749,0.11510709,98552.0,98551.0,0.055763]
[1734765060948,0.07265491,98552.0,98551.0,0.055763]
[1734765061251,0.015,98552.0,98551.0,0.055763]
[1734765061643,0.02330896,98552.0,98551.0,0.055763]
[1734765061849,0.015,98552.0,98551.0,0.055763]
[1734765062548,0.16725203,98552.0,98551.0,0.055763]
[1734765063649,0.16725203,98552.0,98551.0,0.005]
[1734765063849,0.22632572,98552.0,98551.0,0.005]
[1734765064158,0.07323333,98581.0,98560.0,0.050758]
[1734765064450,0.32877843,98631.0,98560.0,0.050758]
[1734765064451,0.30657203,98651.0,98626.0,0.29072979]
[1734765064756,0.30657203,98651.0,98597.0,0.050739]
[1734765064757,0.21837203,98651.0,98650.0,0.3608]
[1734765065141,1.02544177,98651.0,98650.0,0.3608]
[1734765065354,0.85778074,98651.0,98650.0,0.18228816]
[1734765065555,0.86678074,98651.0,98650.0,0.18228816]
[1734765065759,0.86678074,98651.0,98635.0,0.3608]
[1734765065760,0.23360578,98648.0,98635.0,0.3608]
[1734765065948,0.23360578,98636.0,98635.0,0.3608]
[1734765066146,0.23496578,98636.0,98635.0,0.3608]
[1734765066347,0.26188743,98636.0,98635.0,0.3608]
[1734765066856,0.05072,98635.0,98617.0,0.56411967]
[1734765067154,0.23496578,98622.0,98617.0,0.00128]
[1734765067356,0.02193388,98622.0,98616.0,0.050729]
[1734765067753,0.050728,98618.0,98613.0,0.3608]
[1734765068060,0.050728,98618.0,98608.0,0.56539967]
[1734765068061,0.050728,98618.0,98617.0,0.30052512]
[1734765068254,0.001,98622.0,98621.0,0.009]
[1734765068456,0.02057388,98618.0,98617.0,0.28260347]
[1734765068661,0.02057388,98618.0,98614.0,0.24041076]
[1734765068860,0.050727,98620.0,98614.0,0.24041076]
[1734765069055,0.02057388,98615.0,98614.0,0.24041076]
[1734765069251,0.02193388,98615.0,98614.0,0.24041076]
[1734765069551,0.02193388,98615.0,98613.0,0.003]
[1734765069753,0.02057388,98614.0,98613.0,0.05373]
[1734765069961,0.00136,98614.0,98613.0,0.05073]
[1734765070658,0.14142,98634.0,98612.0,0.3608]
[1734765070861,0.14142,98634.0,98627.0,0.3608]
[1734765071158,0.14142,98634.0,98633.0,4e-05]
[1734765071458,0.14142,98634.0,98633.0,0.18009116]
[1734765071660,0.16199388,98634.0,98633.0,0.18009116]
[1734765071853,0.16999388,98634.0,98633.0,0.18009116]
[1734765072160,0.11927388,98634.0,98633.0,4e-05]
[1734765072346,0.11127388,98634.0,98633.0,4e-05]
[1734765072551,0.11327388,98634.0,98633.0,0.01104]
[1734765072746,0.3608,98682.0,98633.0,0.37184]
[1734765072947,0.0869,98681.0,98659.0,0.3608]
[1734765073147,0.0869,98681.0,98667.0,0.3608]
[1734765073346,0.0869,98681.0,98676.0,0.3608]
[1734765073556,0.0869,98681.0,98680.0,4e-05]
[1734765073757,0.0857,98699.0,98683.0,0.050694]
[1734765073945,0.0869,98698.0,98683.0,0.050694]
[1734765074149,0.050691,98691.0,98686.0,0.3608]
[1734765074354,0.050691,98691.0,98683.0,0.050694]
[1734765074844,0.050691,98691.0,98688.0,0.3608]
[1734765075749,0.0869,98698.0,98688.0,0.3608]
[1734765075946,0.050691,98690.0,98688.0,0.3608]
[1734765076448,0.050691,98690.0,98688.0,0.3628]
[1734765077252,0.050691,98690.0,98688.0,0.54273688]
[1734765077961,0.050691,98690.0,98688.0,0.54373688]
[1734765078263,0.050691,98690.0,98688.0,0.3648]
[1734765078465,0.050691,98690.0,98688.0,0.3658]
[1734765079167,0.050691,98690.0,98688.0,0.54573688]
[1734765079465,0.0869,98698.0,98688.0,0.54573688]
[1734765079657,0.0869,98698.0,98688.0,0.3668]
[1734765079964,0.1,98700.0,98699.0,0.050686]
[1734765080266,0.1,98700.0,98699.0,0.050726]
[1734765081560,0.09873158,98720.0,98699.0,0.44230908]
[1734765081763,0.09873158,98720.0,98709.0,0.3608]
[1734765082063,0.14940758,98720.0,98719.0,4e-05]
[1734765082263,0.050676,98720.0,98719.0,4e-05]
[1734765084065,0.052676,98720.0,98719.0,4e-05]
[1734765084456,0.052676,98720.0,98719.0,0.00104]
[1734765084457,0.06336722,98720.0,98719.0,0.00104]
[1734765084659,0.06336722,98720.0,98719.0,0.00304]
[1734765085058,0.06336722,98720.0,98719.0,0.00504]
[1734765085255,0.06336722,98720.0,98719.0,0.00304]
[1734765085462,0.06336722,98720.0,98719.0,0.00604]
[1734765085659,0.06436722,98720.0,98719.0,0.00904]
[1734765085860,0.06436722,98720.0,98719.0,0.009]
[1734765086065,0.07384719,98720.0,98719.0,0.01923997]
[1734765086566,0.08018266,98720.0,98719.0,0.38003997]
[1734765086766,0.04861074,98722.0,98719.0,0.38003997]
[1734765086972,0.04861074,98722.0,98719.0,0.3658]
[1734765087162,0.050676,98720.0,98719.0,0.3708]
[1734765087464,0.04043603,98720.0,98719.0,0.3708]
[1734765087858,0.04043603,98720.0,98719.0,0.3658]
[1734765088169,0.04043603,98720.0,98719.0,0.3708]
[1734765089761,0.04043603,98720.0,98719.0,0.005]
[1734765089967,0.04043603,98720.0,98719.0,0.01]
[1734765090561,0.04043603,98720.0,98719.0,0.3708]
[1734765091670,0.09873158,98730.0,98719.0,0.3708]
[1734765091671,0.08006061,98731.0,98719.0,0.3708]
[1734765091873,0.08006061,98731.0,98730.0,0.3608]
[1734765091874,0.02179061,98731.0,98730.0,0.3608]
[1734765092179,0.02179061,98731.0,98730.0,0.36084]
[1734765092180,0.07246061,98731.0,98730.0,0.36084]
[1734765093879,0.07246061,98731.0,98730.0,0.36284]
[1734765094775,0.07246061,98731.0,98730.0,0.54110326]
[1734765095163,0.07879498,98731.0,98730.0,0.54110326]
[1734765095972,0.07879498,98731.0,98730.0,0.36384]
[1734765096677,0.07879498,98731.0,98730.0,0.36584]
[1734765096883,0.09192551,98731.0,98730.0,0.36584]
[1734765097173,0.09192551,98731.0,98730.0,0.60352435]
[1734765097579,0.0294,98731.0,98730.0,0.60352435]
[1734765098075,0.08007,98731.0,98730.0,0.36584]
[1734765098977,0.08007,98731.0,98730.0,0.36284]
[1734765099176,0.08007,98731.0,98730.0,0.36384]
[1734765099369,0.08007,98731.0,98730.0,0.36684]
[1734765099881,0.08007,98731.0,98730.0,0.36784]
[1734765100172,0.08007,98731.0,98730.0,0.00704]
[1734765100375,0.08007,98731.0,98730.0,0.007]
[1734765100678,0.08007,98731.0,98730.0,0.008]
[1734765101284,0.05827,98731.0,98730.0,0.008]
[1734765102768,0.05827,98731.0,98730.0,0.007]
[1734765102979,0.05327,98731.0,98730.0,0.007]
[1734765108976,0.050673,98726.0,98725.0,0.17978683]
[1734765109372,0.050713,98726.0,98725.0,0.17978683]
[1734765109577,0.06232516,98726.0,98725.0,0.17978683]
[1734765109968,0.06232516,98726.0,98725.0,0.18378683]
[1734765110178,0.06232516,98726.0,98725.0,0.18978683]
[1734765110682,0.06232516,98726.0,98725.0,0.15810894]
[1734765110874,0.06232516,98726.0,98725.0,0.01]
[1734765111581,0.050713,98726.0,98725.0,0.01]
[1734765112377,0.050677,98718.0,98717.0,0.23946044]
[1734765112877,0.050717,98718.0,98717.0,0.23946044]
[1734765113666,0.051717,98718.0,98717.0,0.24846044]
[1734765113868,0.051717,98718.0,98717.0,0.009]
[1734765114986,0.052717,98718.0,98717.0,0.014]
[1734765118579,0.12072894,98722.0,98717.0,0.014]
[1734765118777,0.17140394,98722.0,98721.0,0.3608]
[1734765119083,0.17140394,98722.0,98721.0,0.36088]
[1734765119388,0.050675,98722.0,98721.0,0.36088]
[1734765119776,0.051675,98722.0,98721.0,0.36088]
[1734765121176,0.051675,98722.0,98721.0,0.36488]
[1734765121376,0.051675,98722.0,98721.0,0.37188]
[1734765121988,0.1427076,98722.0,98721.0,0.37188]
[1734765125081,0.051675,98722.0,98721.0,0.37188]
[1734765132190,0.051675,98722.0,98721.0,0.01108]
[1734765133999,0.10094314,98722.0,98721.0,0.01108]
[1734765138692,0.10094314,98722.0,98720.0,0.3608]
[1734765138895,0.05068,98711.0,98710.0,0.00128]
[1734765139098,0.050685,98701.0,98700.0,0.24074044]
[1734765139290,0.050685,98701.0,98700.0,0.23946044]
[1734765139600,0.050725,98701.0,98699.0,0.36231979]
[1734765140387,4e-05,98700.0,98699.0,0.36231979]
[1734765140592,4e-05,98700.0,98699.0,0.3608]
[1734765140790,4e-05,98700.0,98699.0,0.3618]
[1734765141094,4e-05,98700.0,98699.0,0.3628]
[1734765141488,0.00904,98700.0,98699.0,0.3628]
[1734765142198,0.00704,98701.0,98700.0,0.050686]
[1734765142591,0.00704,98701.0,98700.0,0.050766]
[1734765143198,4e-05,98701.0,98700.0,0.050766]
[1734765143603,0.00904,98701.0,98700.0,0.051766]
[1734765144001,0.01704,98701.0,98700.0,0.052766]
[1734765145401,0.09106474,98706.0,98704.0,0.050684]
[1734765145609,0.05068,98711.0,98709.0,0.050681]
[1734765145902,0.17211655,98711.0,98710.0,0.44984]
[1734765147399,0.17311655,98711.0,98710.0,0.46484]
[1734765149012,0.12243655,98711.0,98710.0,0.46484]
[1734765149903,0.001,98711.0,98710.0,0.46484]
[1734765155012,0.001,98711.0,98710.0,0.70657897]
[1734765157711,0.001,98711.0,98710.0,0.46484]
[1734765158819,0.001,98711.0,98710.0,0.10404]
[1734765159119,0.001,98711.0,98710.0,0.82564]
[1734765160516,0.001,98711.0,98710.0,1.06722212]
[1734765161811,0.001,98711.0,98710.0,0.82564]
[1734765164721,0.001,98711.0,98710.0,1.06719085]
[1734765166515,0.001,98711.0,98710.0,0.82564]
[1734765167613,0.001,98711.0,98710.0,0.73664]
[1734765169523,0.001,98711.0,98710.0,0.97827527]
[1734765170919,0.001,98711.0,98710.0,0.73664]
[1734765172423,0.001,98711.0,98710.0,0.01504]
[1734765172625,0.001,98711.0,98710.0,0.73664]
[1734765179826,0.12243655,98711.0,98710.0,0.73664]
[1734765181325,0.001,98711.0,98710.0,0.73664]
[1734765181625,0.001,98711.0,98710.0,0.787321]
[1734765185929,0.1226052,98711.0,98710.0,0.065721]
[1734765186132,0.1226052,98711.0,98710.0,0.787321]
[1734765187430,0.001,98711.0,98710.0,0.787321]
[1734765189135,0.001,98711.0,98710.0,1.08615573]
[1734765190626,0.001,98711.0,98710.0,1.08974414]
[1734765191924,0.001,98711.0,98710.0,0.787321]
[1734765194040,0.001,98711.0,98710.0,0.82609304]
[1734765194539,0.001,98711.0,98710.0,0.787321]
[1734765194838,0.001,98711.0,98710.0,1.38447323]
[1734765196640,0.001,98711.0,98710.0,0.787321]
[1734765203733,0.001,98711.0,98710.0,0.82605533]
[1734765205242,0.001,98711.0,98710.0,1.12067528]
[1734765205547,0.1216052,98724.0,98723.0,0.050674]
[1734765205743,0.1216052,98724.0,98723.0,0.411474]
[1734765205948,0.1216052,98724.0,98723.0,0.411514]
[1734765206742,0.1216052,98724.0,98723.0,0.415514]
[1734765207248,0.0828,98725.0,98723.0,0.421514]
[1734765207648,0.0828,98725.0,98724.0,4e-05]
[1734765208551,0.0828,98725.0,98723.0,0.423754]
[1734765208552,0.0828,98725.0,98723.0,0.260674]
[1734765208752,0.0828,98725.0,98723.0,0.310068]
[1734765208949,8.001e-05,98724.0,98723.0,0.303068]
[1734765209653,8.001e-05,98724.0,98723.0,0.299068]
[1734765209850,8.001e-05,98724.0,98723.0,0.772274]
[1734765211346,8.001e-05,98724.0,98723.0,0.777274]
[1734765211652,8.001e-05,98724.0,98723.0,0.785274]
[1734765212253,8.001e-05,98724.0,98723.0,1.02689795]
[1734765215252,8.001e-05,98724.0,98723.0,0.785274]
[1734765218048,8.001e-05,98724.0,98723.0,1.02689795]
[1734765221151,8.001e-05,98724.0,98723.0,0.785274]
[1734765221757,0.05075401,98724.0,98723.0,0.785274]
[1734765222154,0.05075401,98724.0,98723.0,0.3738]
[1734765224064,0.05075401,98724.0,98723.0,0.424474]
[1734765225860,0.05075401,98724.0,98723.0,0.3738]
[1734765226260,0.05075401,98724.0,98723.0,0.424474]
[1734765226464,0.05075401,98724.0,98723.0,0.3738]
[1734765230360,0.050679,98714.0,98713.0,0.24162395]
[1734765230958,0.050719,98714.0,98713.0,0.24162395]
[1734765231456,0.09998804,98714.0,98705.0,0.18129654]
[1734765231662,0.050683,98706.0,98705.0,0.18129654]
[1734765231863,0.050723,98706.0,98705.0,0.18129654]
[1734765232263,0.050723,98706.0,98705.0,0.23197954]
[1734765232867,0.050723,98706.0,98705.0,0.050683]
[1734765233066,0.050723,98706.0,98705.0,0.051683]
[1734765234358,0.058723,98706.0,98705.0,0.052683]
[1734765234962,0.058723,98706.0,98705.0,0.002]
[1734765238874,0.18010403,98706.0,98705.0,0.002]
[1734765240573,0.058723,98706.0,98705.0,0.002]
[1734765242075,0.18010403,98706.0,98705.0,0.002]
[1734765243477,0.058723,98706.0,98705.0,0.002]
[1734765243671,0.00804,98706.0,98705.0,0.002]
[1734765244266,0.058723,98706.0,98705.0,0.002]
[1734765250174,0.18010403,98706.0,98705.0,0.002]
[1734765251469,0.058723,98706.0,98705.0,0.002]
[1734765254578,0.18010403,98706.0,98705.0,0.002]
[1734765255870,0.18010403,98706.0,98705.0,0.18329654]
[1734765257479,0.18010403,98706.0,98705.0,0.002]
[1734765259185,0.058723,98706.0,98705.0,0.002]
[1734765261181,0.00804,98706.0,98705.0,0.052683]
[1734765269692,0.058723,98706.0,98705.0,0.052683]
[1734765279496,0.058723,98706.0,98705.0,0.002]
[1734765282391,0.058723,98706.0,98704.0,0.08622395]
[1734765282894,4e-05,98705.0,98704.0,0.08622395]
[1734765283701,0.04931782,98705.0,98704.0,0.001]
[1734765284493,0.04931782,98705.0,98704.0,0.002]
[1734765285202,0.05631782,98705.0,98704.0,0.002]
[1734765292804,0.00704,98705.0,98704.0,0.002]
[1734765295908,0.15884992,98705.0,98704.0,0.002]
[1734765297716,0.00704,98705.0,98704.0,0.002]
[1734765300412,0.05631322,98705.0,98704.0,0.002]
[1734765301915,0.00704,98705.0,98704.0,0.002]
[1734765304819,0.05631267,98705.0,98704.0,0.002]
[1734765313318,0.10699567,98705.0,98704.0,0.002]
[1734765314718,0.28922171,98705.0,98704.0,0.002]
[1734765315519,0.10699567,98705.0,98704.0,0.002]
[1734765316617,0.10699567,98705.0,98680.0,0.3608]
[1734765316818,0.050695,98683.0,98680.0,0.3608]
[1734765317123,0.050735,98683.0,98680.0,0.3608]
[1734765317419,0.050735,98683.0,98681.0,0.30202994]
[1734765317828,4e-05,98682.0,98681.0,0.30202994]
[1734765318726,4e-05,98682.0,98681.0,0.30302994]
[1734765319026,0.04931267,98682.0,98681.0,0.001]
[1734765319327,0.10000767,98682.0,98681.0,0.001]
[1734765319826,0.10000767,98682.0,98681.0,0.002]
[1734765320227,0.050735,98682.0,98681.0,0.002]
[1734765320424,0.051735,98682.0,98681.0,0.006]
[1734765320819,0.051735,98682.0,98681.0,0.005]
[1734765321020,0.052735,98682.0,98681.0,0.013]
[1734765321221,0.051735,98682.0,98681.0,0.013]
[1734765321618,0.20354902,98682.0,98681.0,0.013]
[1734765323029,0.051735,98682.0,98681.0,0.013]
[1734765323529,0.052735,98682.0,98681.0,0.012]
[1734765324330,0.050696,98680.0,98675.0,0.00011159]
[1734765324732,0.050736,98680.0,98679.0,1e-06]
[1734765325432,0.051736,98680.0,98662.0,0.1]
[1734765325625,0.050705,98663.0,98662.0,0.1]
[1734765325822,0.050745,98663.0,98662.0,0.1]
[1734765327122,0.051745,98663.0,98662.0,0.11]
[1734765327923,0.051745,98663.0,98662.0,0.107]
[1734765328428,0.051745,98663.0,98662.0,0.103]
[1734765328625,0.052745,98663.0,98662.0,0.108]
[1734765329120,0.052745,98663.0,98662.0,0.103]
[1734765329524,0.00104,98663.0,98662.0,0.1]
[1734765329825,0.15160962,98676.0,98674.0,0.050699]
[1734765330026,0.15160962,98676.0,98675.0,0.5579]
[1734765330226,0.15160962,98676.0,98675.0,0.55798]
[1734765330537,0.15160962,98677.0,98675.0,0.55798]
[1734765330928,0.050698,98676.0,98675.0,0.55798]
[1734765331434,0.050698,98676.0,98675.0,0.5579]
[1734765331637,0.050698,98676.0,98675.0,0.5609]
[1734765332623,0.050698,98676.0,98675.0,0.5639]
[1734765333431,0.0076,98678.0,98676.0,0.050698]
[1734765334842,0.0076,98678.0,98676.0,0.052698]
[1734765335525,0.058297,98678.0,98676.0,0.002]
[1734765335725,0.058297,98678.0,98676.0,0.005]
[1734765340541,0.00107649,98677.0,98676.0,0.005]
[1734765341938,0.00107649,98677.0,98676.0,0.006]
[1734765341939,0.05177449,98677.0,98676.0,0.006]
[1734765344040,0.05177449,98677.0,98676.0,0.003]
[1734765344230,0.05177449,98677.0,98676.0,0.007]
[1734765345027,0.05177449,98677.0,98676.0,0.004]
[1734765345232,0.05177449,98677.0,98676.0,0.008]
[1734765345936,0.05195801,98677.0,98676.0,0.008]
[1734765348937,0.05214143,98677.0,98676.0,0.008]
[1734765349633,0.05232485,98677.0,98676.0,0.008]
[1734765350244,0.05250827,98677.0,98676.0,0.008]
[1734765351131,0.20439645,98677.0,98676.0,0.008]
[1734765355352,0.05250827,98677.0,98676.0,0.008]
[1734765357448,0.24900827,98677.0,98676.0,0.008]
[1734765357651,0.29829265,98677.0,98676.0,0.008]
[1734765359545,0.29829265,98677.0,98676.0,0.3688]
[1734765359745,0.29829265,98677.0,98676.0,0.008]
[1734765364358,0.29845689,98677.0,98676.0,0.008]
[1734765368154,0.10195689,98677.0,98676.0,0.008]
[1734765368961,0.10212113,98677.0,98676.0,0.008]